bitfinex/quotes_ETHUSD_20250623
["timestamp","ask_amount","ask_price","bid_price","bid_amount"]
[1750660452849,18.84774908,2245.6,2245.5,0.6667]
[1750660454090,18.83690371,2245.6,2245.5,0.6667]
[1750660454979,0.91190371,2245.6,2245.5,0.6667]
[1750660455866,0.91340406,2245.6,2245.5,0.6667]
[1750660456499,0.91340788,2245.6,2245.5,0.6667]
[1750660456771,0.91340088,2245.6,2245.5,0.6667]
[1750660457082,0.91339447,2245.6,2245.5,0.6667]
[1750660457895,0.91345341,2245.6,2245.5,0.6667]
[1750660458660,0.91350433,2245.6,2245.5,0.6667]
[1750660458842,0.91350433,2245.6,2245.5,0.7266]
[1750660459042,0.91350327,2245.6,2245.5,0.7266]
[1750660460046,0.91350327,2245.6,2245.5,0.6667]
[1750660460275,0.91349255,2245.6,2245.5,0.6667]
[1750660460647,0.91349255,2245.6,2245.5,0.7266]
[1750660461477,0.5,2245.6,2245.5,0.7266]
[1750660461645,0.91340206,2245.6,2245.5,0.6667]
[1750660463882,0.91340206,2245.6,2245.5,1.4593]
[1750660464051,7.866,2246.3,2245.5,1.4593]
[1750660464052,7.861,2246.3,2245.5,1.4593]
[1750660464247,10.0,2246.2,2245.5,1.4593]
[1750660465888,0.5,2246.0,2245.5,1.4593]
[1750660466185,7.857,2245.9,2245.5,1.4593]
[1750660467071,10.0,2245.8,2245.5,0.6667]
[1750660470002,3.218,2246.0,2245.5,0.6667]
[1750660470003,0.5,2246.0,2245.5,0.6667]
[1750660470501,10.7591,2245.7,2245.5,0.6667]
[1750660470704,20.6034,2245.6,2245.5,0.6667]
[1750660470902,10.8155,2245.5,2244.7,0.226274]
[1750660471102,10.0,2244.9,2244.7,0.226274]
[1750660471305,7.829,2244.8,2244.7,0.226274]
[1750660476118,8.24201642,2244.8,2244.7,0.226274]
[1750660476806,8.24195427,2244.8,2244.7,0.226274]
[1750660476974,8.21295427,2244.8,2244.7,0.226274]
[1750660477376,8.21280793,2244.8,2244.7,0.226274]
[1750660477589,8.21280793,2244.8,2244.7,0.286174]
[1750660477997,7.8,2244.8,2244.7,1.111474]
[1750660480513,10.0,2245.4,2244.7,1.111474]
[1750660480811,10.0,2245.2,2244.7,1.051574]
[1750660481008,10.0,2245.0,2244.8,0.0599]
[1750660481208,7.781,2245.1,2244.8,0.0599]
[1750660481601,7.781,2245.1,2244.7,1.051574]
[1750660481912,10.0,2245.1,2244.8,0.0599]
[1750660482111,10.0,2245.5,2244.8,0.0599]
[1750660482283,10.0,2245.3,2244.8,0.0599]
[1750660482811,7.775,2245.4,2244.8,0.0599]
[1750660482978,0.41266989,2245.3,2244.8,0.0599]
[1750660483176,10.0,2245.3,2244.8,0.0599]
[1750660485422,10.0,2245.3,2244.8,0.60120166]
[1750660485832,5.5192,2245.2,2244.7,0.226274]
[1750660486148,0.0585,2244.6,2243.0,0.04454091]
[1750660486340,11.0166184,2244.5,2243.2,0.7821]
[1750660486519,0.4126184,2244.4,2243.2,0.7821]
[1750660486844,0.4126184,2244.3,2243.2,0.7821]
[1750660486997,8.2966184,2244.2,2243.2,0.7821]
[1750660487308,7.884,2244.2,2243.3,0.35011]
[1750660487631,7.884,2244.2,2243.4,0.0621]
[1750660488302,7.877,2244.1,2243.5,0.7688]
[1750660488632,7.875,2244.1,2243.5,0.7688]
[1750660488832,8.6625,2244.1,2243.5,0.7688]
[1750660491634,0.0585,2243.2,2241.9,0.8127]
[1750660491833,11.59663397,2243.0,2241.9,0.8127]
[1750660492132,0.41105067,2242.9,2241.9,0.8127]
[1750660492331,0.0585,2242.8,2242.1,0.0621]
[1750660492648,7.911,2242.7,2242.1,0.0621]
[1750660493919,7.9695,2242.7,2241.9,0.7506]
[1750660497010,0.5,2242.5,2241.9,0.7506]
[1750660497315,0.5,2242.5,2242.0,0.04460098]
[1750660497518,0.5,2242.5,2242.4,0.272274]
[1750660497714,7.888,2242.6,2242.4,0.226274]
[1750660499135,0.0585,2242.9,2242.4,0.226274]
[1750660499345,7.877,2242.6,2242.4,0.226274]
[1750660501344,10.0,2242.5,2242.4,0.226274]
[1750660502047,10.5585,2242.5,2242.4,0.226274]
[1750660503340,24.81763397,2242.5,2242.4,0.226274]
[1750660503942,21.1415,2242.5,2242.4,0.226274]
[1750660504151,0.5,2242.5,2242.4,0.226274]
[1750660504346,0.7746,2243.4,2242.4,11.76440797]
[1750660504549,0.0585,2243.6,2242.5,2.01023218]
[1750660504848,10.708,2244.0,2242.6,0.7892]
[1750660505047,10.708,2244.0,2242.5,5.63563255]
[1750660505048,8.27530357,2243.9,2242.8,4.45869657]
[1750660505269,7.867,2243.9,2242.9,5.26441199]
[1750660505431,17.866,2243.9,2242.9,0.8059]
[1750660505628,18.17236647,2243.9,2243.0,0.79865157]
[1750660506165,10.0,2243.7,2242.9,5.26438374]
[1750660506331,10.0,2243.7,2242.9,0.8059]
[1750660506857,0.30636647,2243.9,2243.0,5.24551376]
[1750660507066,7.858,2244.0,2243.1,0.7872]
[1750660507226,10.0,2243.9,2243.1,5.24527656]
[1750660507425,17.858,2244.1,2243.2,0.97035903]
[1750660507649,7.858,2244.1,2243.3,0.0621]
[1750660507853,17.858,2244.1,2243.3,0.0621]
[1750660508260,17.858,2244.1,2243.2,0.97035903]
[1750660508458,17.858,2244.1,2243.3,0.0621]
[1750660508628,17.856,2244.1,2243.3,0.6898762]
[1750660509467,7.846,2244.2,2243.5,0.0621]
[1750660509761,7.846,2244.2,2243.6,0.8864]
[1750660509965,7.846,2244.2,2243.7,0.0621]
[1750660510363,7.846,2244.2,2243.6,0.86886506]
[1750660510657,2.721,2244.4,2243.8,0.0621]
[1750660511061,7.8437,2244.5,2243.8,0.0621]
[1750660511765,10.0,2244.4,2243.6,0.8243]
[1750660514661,10.0,2244.4,2243.7,0.04456225]
[1750660514830,10.0,2244.4,2243.7,0.53261431]
[1750660515666,10.0,2244.4,2243.6,0.8243]
[1750660517442,10.0,2244.4,2243.7,0.0581]
[1750660518666,10.0597,2244.4,2243.7,0.0581]
[1750660521265,10.0,2244.4,2243.7,0.0581]
[1750660521886,10.0597,2244.4,2243.6,0.8243]
[1750660522259,10.0,2244.2,2243.6,0.8243]
[1750660522459,0.0597,2244.0,2243.6,0.8243]
[1750660523080,7.781,2244.1,2243.6,0.8243]
[1750660523393,0.0597,2244.0,2243.6,0.8243]
[1750660525513,7.781,2244.1,2243.6,0.8243]
[1750660525996,10.0,2244.0,2243.3,0.04457214]
[1750660526196,0.0597,2243.1,2242.3,0.8169]
[1750660526403,10.0,2242.9,2242.3,0.8169]
[1750660526558,10.0,2242.9,2241.5,2.621]
[1750660526559,0.0597,2242.7,2242.0,0.8169]
[1750660526896,10.0597,2242.5,2242.0,0.8169]
[1750660527262,10.47011252,2242.5,2242.0,0.8169]
[1750660527602,10.47034568,2242.5,2242.0,0.8169]
[1750660527962,10.0597,2242.5,2242.0,0.8169]
[1750660528266,0.55774978,2242.8,2242.0,0.8169]
[1750660528460,10.0,2242.6,2242.0,0.8169]
[1750660528698,0.0597,2242.5,2242.0,0.8169]
[1750660529190,0.47029405,2242.5,2242.0,0.8169]
[1750660529407,0.0597,2242.5,2241.7,0.8154]
[1750660529575,0.47029321,2242.5,2241.7,0.8154]
[1750660530496,0.47037352,2242.5,2241.7,0.8154]
[1750660530677,0.9684233,2242.5,2241.7,0.8154]
[1750660531090,0.9684233,2242.5,2240.1,6.23876628]
[1750660531091,0.1566,2242.4,2240.7,0.44067372]
[1750660531289,0.1566,2241.2,2240.7,0.44067372]
[1750660531488,7.883,2241.1,2240.5,0.7767]
[1750660531694,7.885,2241.1,2240.5,0.8348]
[1750660532201,8.6735,2241.1,2240.5,0.7767]
[1750660533415,10.0597,2241.0,2240.5,0.7767]
[1750660534309,7.876,2240.9,2240.5,0.7767]
[1750660534912,7.873,2241.2,2240.5,0.7767]
[1750660535115,7.872,2241.4,2240.6,0.04463464]
[1750660535275,7.872,2241.4,2240.7,0.7692]
[1750660535483,7.87,2241.5,2240.7,4.4628408]
[1750660535688,10.493,2241.8,2240.8,1.21548408]
[1750660536221,10.0,2241.7,2240.8,1.21548408]
[1750660537596,10.0,2241.7,2240.8,1.27358408]
[1750660538506,10.0,2241.7,2240.8,5.78088491]
[1750660539296,10.0,2241.7,2241.0,0.0581]
[1750660539622,2.623,2241.8,2241.2,0.0581]
[1750660540616,2.623,2241.8,2241.3,0.8036]
[1750660540821,2.623,2241.8,2241.4,0.0581]
[1750660540822,10.0,2241.8,2241.4,0.0581]
[1750660541830,7.854,2241.9,2241.4,0.0581]
[1750660542031,2.623,2242.3,2241.6,0.0581]
[1750660542321,2.623,2242.3,2241.5,0.8095]
[1750660542322,10.0,2242.2,2241.5,0.8095]
[1750660543925,10.0,2242.2,2241.5,0.8541088]
[1750660544090,10.0,2242.2,2241.5,5.31534244]
[1750660544292,10.463,2242.3,2241.6,0.7957]
[1750660544497,7.8898,2242.5,2241.6,1.37910308]
[1750660544699,7.8898,2242.5,2241.6,0.7957]
[1750660545704,0.0598,2242.5,2241.6,0.7957]
[1750660546038,7.8888,2242.5,2241.7,0.04460506]
[1750660546638,7.829,2242.5,2241.8,0.7785]
[1750660548249,10.0598,2242.7,2241.8,0.7785]
[1750660548446,7.815,2242.6,2241.8,0.7785]
[1750660549146,10.0,2242.5,2241.8,0.7785]
[1750660549453,10.0,2242.5,2241.9,0.0608]
[1750660549752,10.0,2242.5,2242.0,0.8137]
[1750660549953,10.0,2242.5,2242.1,0.0608]
[1750660550161,10.0,2242.6,2242.0,0.8137]
[1750660551516,10.0598,2242.6,2242.0,0.8137]
[1750660553273,0.41221876,2242.5,2242.0,0.8137]
[1750660553562,0.0598,2242.5,2242.0,0.8137]
[1750660554262,10.0,2242.6,2242.0,0.8137]
[1750660554466,0.4122368,2242.5,2242.0,0.8137]
[1750660555352,0.4122368,2242.4,2242.0,0.8137]
[1750660555524,0.4122368,2242.3,2242.0,0.8137]
[1750660555726,0.0598,2242.5,2242.0,0.8137]
[1750660555925,0.41335109,2242.4,2242.0,0.8137]
[1750660556125,0.41335109,2242.3,2242.0,0.8137]
[1750660556325,0.0598,2242.5,2242.0,0.8137]
[1750660556525,0.41338906,2242.4,2242.0,0.8137]
[1750660556826,0.41338906,2242.3,2242.0,0.8137]
[1750660557024,0.0598,2242.5,2242.0,0.8137]
[1750660557226,10.0,2242.2,2241.4,0.7782]
[1750660557530,10.0,2242.0,2241.4,0.7782]
[1750660557732,0.47318905,2241.9,2241.4,0.7782]
[1750660557959,0.47318905,2241.8,2241.4,0.7782]
[1750660558256,0.41338905,2241.7,2241.4,0.7782]
[1750660558417,0.0598,2241.7,2241.4,0.7782]
[1750660559473,10.0,2242.0,2241.4,0.7782]
[1750660559674,0.47304278,2241.9,2241.4,0.7782]
[1750660559869,0.41324278,2241.8,2241.4,0.7782]
[1750660560083,10.0,2242.0,2241.4,0.7782]
[1750660560084,0.41324278,2241.7,2241.4,0.839]
[1750660560283,10.0,2242.0,2241.4,0.839]
[1750660560592,0.41321543,2241.9,2241.4,0.839]
[1750660560788,0.41321543,2241.8,2241.4,0.839]
[1750660561083,10.0598,2241.6,2240.7,0.0608]
[1750660561294,0.0598,2241.4,2240.7,0.0608]
[1750660561579,0.41321543,2241.3,2240.7,0.0608]
[1750660561752,0.41303223,2241.2,2240.7,0.0608]
[1750660561948,0.41303223,2241.1,2240.7,0.0608]
[1750660562180,0.41303223,2241.0,2240.7,0.0608]
[1750660562353,0.0598,2241.4,2240.7,0.0608]
[1750660562553,0.41301312,2241.3,2240.7,0.0608]
[1750660562781,0.41301312,2241.2,2240.7,0.0608]
[1750660562956,0.41301312,2241.1,2240.6,0.8327]
[1750660563164,0.41301312,2241.0,2240.6,0.8327]
[1750660563355,0.41301312,2240.9,2240.6,0.8327]
[1750660563582,0.41317358,2240.8,2240.6,0.8327]
[1750660563783,8.5988,2241.2,2240.6,0.8327]
[1750660564017,0.41314729,2241.1,2240.6,0.8327]
[1750660564217,0.41312675,2241.0,2240.6,0.8327]
[1750660564361,0.41312675,2240.9,2240.6,0.8327]
[1750660564565,7.769,2241.1,2240.6,0.8327]
[1750660564905,7.769,2241.1,2240.1,4.69026105]
[1750660564906,0.0598,2240.8,2240.1,0.226274]
[1750660565057,0.41312866,2240.7,2240.2,5.33161508]
[1750660565257,7.8388,2241.3,2240.4,0.8209]
[1750660565575,10.41269808,2241.2,2240.4,0.8209]
[1750660565784,0.41269808,2241.1,2240.4,0.8209]
[1750660565986,0.41269808,2241.0,2240.4,0.8209]
[1750660566287,0.41269808,2240.9,2240.4,0.8209]
[1750660566603,2.628,2241.6,2240.6,0.8153]
[1750660566604,0.49727291,2241.4,2240.6,0.8153]
[1750660566890,8.18774719,2241.3,2240.6,0.8153]
[1750660567093,0.41274719,2241.2,2240.6,0.8153]
[1750660567267,0.41273061,2241.1,2240.6,0.8153]
[1750660567459,0.47253061,2241.0,2240.6,0.8153]
[1750660567655,0.41273061,2240.9,2240.6,0.8153]
[1750660567905,0.0598,2241.0,2240.6,0.8153]
[1750660568207,0.41261795,2240.9,2240.6,0.8153]
[1750660568502,7.783,2241.3,2240.6,0.8153]
[1750660568704,1.24068495,2241.2,2240.6,0.8153]
[1750660569004,0.41260213,2241.1,2240.6,0.8153]
[1750660569170,0.82804963,2241.2,2240.6,0.8761]
[1750660569171,0.41260213,2241.0,2240.6,0.8761]
[1750660569378,0.82804963,2241.2,2240.6,0.8761]
[1750660569585,0.41260972,2241.1,2240.6,0.8761]
[1750660569764,0.41260972,2241.0,2240.6,0.8761]
[1750660570088,0.82804963,2241.2,2240.6,0.8761]
[1750660570295,0.41260715,2241.1,2240.6,0.8761]
[1750660570487,0.41260715,2241.0,2240.6,0.8153]
[1750660570795,0.82804963,2241.2,2240.6,0.8153]
[1750660570973,0.41269737,2241.1,2240.6,0.8153]
[1750660571305,0.82804963,2241.2,2240.6,0.8153]
[1750660571306,0.41269737,2241.0,2240.7,0.0608]
[1750660571462,0.82804963,2241.2,2240.7,0.0608]
[1750660571663,0.41260437,2241.1,2240.7,0.0608]
[1750660571862,0.41260437,2241.0,2240.7,0.0608]
[1750660572198,0.82804963,2241.2,2240.7,0.0608]
[1750660572402,0.41258001,2241.1,2240.7,0.0608]
[1750660572694,0.82804963,2241.2,2240.7,0.0608]
[1750660572859,0.41257955,2241.1,2240.7,0.0608]
[1750660573064,0.88634963,2241.2,2240.6,0.8153]
[1750660573264,0.41258268,2241.1,2240.6,0.8153]
[1750660573463,0.88634963,2241.2,2240.6,0.8153]
[1750660573714,1.00034046,2241.1,2240.6,0.8153]
[1750660573896,0.41249031,2241.0,2240.6,0.8153]
[1750660574229,0.47079031,2240.9,2240.2,0.7897]
[1750660574429,0.41249031,2240.8,2240.2,0.7897]
[1750660574714,0.0583,2240.9,2240.2,0.7897]
[1750660574892,7.753,2241.0,2240.2,0.8343332]
[1750660575099,0.41237826,2240.9,2240.2,1.34216913]
[1750660575433,7.753,2241.0,2240.2,1.34216913]
[1750660575714,10.52955015,2241.1,2240.3,5.21946206]
[1750660575873,0.41228731,2241.0,2240.4,0.7558]
[1750660576209,10.0,2241.1,2240.4,0.7558]
[1750660577483,10.0,2241.1,2240.4,0.8165]
[1750660579203,0.41239663,2241.0,2240.4,0.8165]
[1750660579385,0.41243385,2240.9,2240.4,0.8165]
[1750660579570,10.0,2241.1,2240.4,0.8165]
[1750660579771,0.41243341,2241.0,2240.4,0.8165]
[1750660579985,10.0,2241.1,2240.4,0.8165]
[1750660580297,0.41242888,2241.0,2240.4,0.8165]
[1750660580714,0.41264618,2240.9,2240.4,0.7558]
[1750660580870,10.0,2241.1,2240.5,0.0607]
[1750660581069,0.41263734,2241.0,2240.4,0.7558]
[1750660581391,10.0,2241.1,2240.4,0.7558]
[1750660581392,0.47093558,2240.9,2240.4,0.7558]
[1750660581598,0.0583,2240.9,2240.4,0.7558]
[1750660581920,10.0,2241.1,2240.4,0.7558]
[1750660582119,0.4129026,2241.0,2240.4,0.7558]
[1750660582300,0.0583,2240.8,2240.4,0.7558]
[1750660582627,0.0583,2241.0,2240.4,0.7558]
[1750660582775,0.41289956,2240.9,2240.4,0.7558]
[1750660582972,0.47119956,2240.8,2240.4,0.7558]
[1750660583281,0.0583,2241.0,2240.4,0.7558]
[1750660583480,0.47119598,2240.9,2240.4,0.7558]
[1750660583793,0.41289598,2240.8,2240.4,0.7558]
[1750660583974,0.41289598,2240.7,2240.4,0.7558]
[1750660584175,0.0583,2240.8,2240.4,0.7558]
[1750660584375,0.41347571,2240.7,2240.4,0.7558]
[1750660584577,0.0583,2240.8,2240.4,0.7558]
[1750660584807,0.41349804,2240.7,2240.4,0.7558]
[1750660584994,0.0583,2240.8,2240.4,0.7558]
[1750660585300,0.4135046,2240.7,2240.4,0.7558]
[1750660585504,7.709,2240.9,2240.4,0.7558]
[1750660585707,0.41353962,2240.8,2240.4,0.7558]
[1750660586406,0.41353962,2240.7,2240.4,0.7558]
[1750660586709,10.0,2240.9,2240.4,0.7558]
[1750660586898,0.41427561,2240.8,2240.4,0.7558]
[1750660587103,0.41427561,2240.7,2240.4,0.7558]
[1750660587395,10.0,2240.9,2240.4,0.7558]
[1750660587596,0.4143617,2240.8,2240.4,0.7558]
[1750660587815,0.4143617,2240.7,2240.5,0.0607]
[1750660587976,10.0,2240.9,2240.4,0.8165]
[1750660588174,0.4143598,2240.8,2240.4,0.7558]
[1750660588376,0.4143598,2240.7,2240.5,0.0607]
[1750660588574,10.0,2240.9,2240.4,0.7558]
[1750660588790,7.695,2241.4,2240.7,0.0607]
[1750660588986,0.41474872,2241.3,2240.7,0.0607]
[1750660589213,0.41474872,2241.2,2240.9,0.0607]
[1750660589412,0.41474872,2241.1,2240.9,0.0607]
[1750660589621,7.696,2241.5,2240.9,0.0607]
[1750660589794,0.41479422,2241.4,2240.9,0.0607]
[1750660589993,0.41479422,2241.3,2240.9,0.0607]
[1750660590189,0.41479334,2241.2,2240.9,0.0607]
[1750660590520,0.41480704,2241.1,2240.9,0.0607]
[1750660590685,7.696,2241.5,2240.9,0.0607]
[1750660590881,0.41477787,2241.4,2240.8,0.7763]
[1750660591196,0.41529286,2241.3,2240.9,0.0607]
[1750660591524,0.41529286,2241.2,2240.9,0.0607]
[1750660591697,7.696,2241.5,2240.9,0.0607]
[1750660591698,0.41529286,2241.1,2240.9,0.0607]
[1750660592017,7.696,2241.5,2240.9,0.0607]
[1750660592178,1.19071661,2241.4,2240.6,4.46308588]
[1750660592377,10.0,2241.2,2240.2,0.7594]
[1750660592582,0.41523472,2241.1,2240.2,0.7594]
[1750660592822,0.41523472,2241.0,2240.2,0.7594]
[1750660592986,0.41523472,2240.9,2240.3,1.54496635]
[1750660593182,0.41523472,2240.8,2240.3,1.54496635]
[1750660593378,0.41523472,2240.7,2240.3,1.54496635]
[1750660593717,0.41523472,2240.6,2240.2,0.7594]
[1750660593891,0.0583,2240.9,2240.2,0.7594]
[1750660594080,0.41521449,2240.8,2240.2,0.7594]
[1750660594321,0.41520066,2240.7,2240.2,0.7594]
[1750660594507,0.41519786,2240.6,2240.2,0.7594]
[1750660594829,0.41519786,2240.5,2240.1,0.226274]
[1750660595010,0.41508469,2240.4,2240.2,0.7624]
[1750660595316,7.689,2240.8,2240.2,0.7624]
[1750660595515,0.44369683,2241.8,2240.1,0.226274]
[1750660595516,0.41511486,2240.7,2240.4,10.0]
[1750660595715,0.0583,2241.2,2240.5,0.7567]
[1750660596021,0.4151223,2241.1,2240.5,0.7567]
[1750660596197,0.4151223,2241.0,2240.5,0.7567]
[1750660596391,0.4151223,2240.9,2240.5,0.7567]
[1750660596592,0.4151223,2240.8,2240.5,0.7567]
[1750660596794,0.41510166,2240.7,2240.1,0.226274]
[1750660597011,0.0583,2241.1,2240.1,0.226274]
[1750660597012,0.41510166,2240.6,2240.1,0.226274]
[1750660597229,0.41510166,2240.5,2240.1,0.226274]
[1750660597432,0.0583,2240.9,2240.1,0.286974]
[1750660597598,0.41509775,2240.8,2240.1,0.226274]
[1750660597934,0.41509775,2240.7,2240.2,0.0607]
[1750660598139,0.41507563,2240.6,2240.2,0.0607]
[1750660598432,0.0583,2240.9,2240.2,0.0607]
[1750660598433,0.41507563,2240.5,2240.2,0.0607]
[1750660598636,0.0583,2240.9,2240.2,0.0607]
[1750660598853,0.0583,2240.5,2240.1,0.226274]
[1750660599154,11.56914732,2240.6,2240.1,0.226274]
[1750660599155,0.41507927,2240.4,2240.1,0.226274]
[1750660599333,0.41499857,2240.3,2240.1,0.226274]
[1750660599498,7.7393,2240.6,2240.1,0.226274]
[1750660599704,0.41503598,2240.5,2240.1,0.286974]
[1750660599952,0.41502646,2240.4,2240.2,0.0607]
[1750660600102,7.7393,2240.6,2240.1,0.226274]
[1750660600302,0.41502965,2240.5,2240.1,0.226274]
[1750660600547,0.41503215,2240.4,2240.1,0.226274]
[1750660600734,0.41500201,2240.3,2240.1,0.226274]
[1750660600939,7.7393,2240.6,2240.1,0.226274]
[1750660601116,0.41480682,2240.5,2240.1,0.226274]
[1750660601309,0.41480682,2240.4,2240.1,0.226274]
[1750660601509,0.41480682,2240.3,2240.1,0.226274]
[1750660601711,0.41480682,2240.2,2240.1,0.286974]
[1750660602105,0.8304,2240.9,2240.1,0.33161251]
[1750660602418,0.41476062,2240.8,2240.1,0.286974]
[1750660602620,0.41476269,2240.7,2240.1,0.286974]
[1750660602952,0.0574,2240.5,2240.1,0.226274]
[1750660603258,0.41462139,2240.4,2240.1,0.226274]
[1750660603460,0.41461958,2240.3,2240.1,0.226274]
[1750660603604,0.41460312,2240.2,2240.1,0.226274]
[1750660606614,0.41426446,2240.2,2240.1,0.226274]
[1750660607347,0.0574,2240.8,2240.1,0.226274]
[1750660607552,0.41412817,2240.7,2240.1,0.283174]
[1750660607849,0.41412902,2240.6,2240.1,0.283174]
[1750660608035,0.41412902,2240.5,2240.1,0.283174]
[1750660608239,0.41412902,2240.4,2240.1,0.283174]
[1750660608436,0.41412902,2240.3,2240.2,0.0569]
[1750660608635,0.41409168,2240.3,2240.2,0.0569]
[1750660609024,1.342327,2241.5,2240.2,0.0569]
[1750660609025,10.0,2241.4,2240.2,0.0569]
[1750660609356,0.47152388,2241.3,2240.4,0.0569]
[1750660609570,10.41412388,2241.2,2240.4,0.0569]
[1750660609847,2.446,2241.4,2240.6,0.8207]
[1750660609848,0.41412388,2241.1,2240.6,0.8207]
[1750660610051,0.41412388,2241.0,2240.7,0.0569]
[1750660610349,0.41412388,2240.9,2240.7,0.0569]
[1750660610515,10.0,2241.4,2240.7,0.0569]
[1750660610716,0.41411696,2241.3,2240.7,0.0569]
[1750660610951,0.41411696,2241.2,2240.6,0.8207]
[1750660611144,0.41411696,2241.1,2240.6,0.8207]
[1750660611344,0.41412146,2241.0,2240.6,0.8207]
[1750660611553,0.44369683,2241.8,2240.8,0.0569]
[1750660611554,0.837,2241.8,2240.8,0.0569]
[1750660611727,9.31276114,2241.7,2240.9,0.8082]
[1750660611931,10.41414641,2241.6,2240.9,0.8082]
[1750660612124,0.41413257,2241.5,2240.9,0.8082]
[1750660612437,0.41413257,2241.4,2240.9,0.8651]
[1750660612639,0.41413257,2241.3,2240.9,0.8651]
[1750660612856,0.41413257,2241.2,2240.9,0.8082]
[1750660613055,0.41413257,2241.2,2240.5,0.7749]
[1750660613056,0.41413257,2241.1,2240.5,0.7749]
[1750660613261,0.41413257,2241.0,2240.5,0.8318]
[1750660613557,0.41413257,2240.9,2240.5,0.8318]
[1750660613753,0.8126,2241.2,2240.5,0.8318]
[1750660613967,0.41405775,2241.1,2240.5,0.8318]
[1750660614126,0.41405775,2241.0,2240.5,0.8318]
[1750660614330,0.41405689,2240.9,2240.5,0.8318]
[1750660614659,0.8126,2241.2,2240.5,0.8318]
[1750660614824,0.41401201,2241.1,2240.5,0.8318]
[1750660615145,0.41401349,2241.0,2240.5,0.8318]
[1750660615346,0.41401349,2240.9,2240.5,0.8318]
[1750660615681,0.8126,2241.2,2240.5,0.7749]
[1750660615858,0.41398908,2241.1,2240.5,0.7749]
[1750660616066,0.41398908,2241.0,2240.5,0.7749]
[1750660616356,0.41398908,2240.9,2240.5,0.7749]
[1750660616556,0.41398908,2240.8,2240.5,0.8318]
[1750660616747,0.8126,2241.2,2240.5,0.8318]
[1750660617061,0.41398025,2241.1,2240.5,0.8318]
[1750660617224,0.41398025,2241.0,2240.5,0.8318]
[1750660617419,0.41398025,2240.9,2240.5,0.7749]
[1750660617745,0.41389535,2240.8,2240.5,0.8195]
[1750660617950,0.8126,2241.2,2240.5,0.8195]
[1750660618144,11.56914732,2241.5,2240.5,0.8195]
[1750660618145,0.41389733,2241.1,2240.5,0.8195]
[1750660618318,0.41390565,2241.0,2240.6,0.08922726]
[1750660618522,0.41390565,2240.9,2240.6,0.04462726]
[1750660618718,10.9192,2241.5,2240.7,0.0446]
[1750660618960,0.41394305,2241.4,2240.9,0.0446]
[1750660619156,0.41394305,2241.3,2240.9,0.0446]
[1750660619365,0.41394305,2241.2,2240.8,0.7929]
[1750660619564,0.41394305,2241.1,2240.9,0.0446]
[1750660619779,0.41393785,2241.0,2240.8,0.8375]
[1750660620082,0.0574,2241.4,2240.8,0.8375]
[1750660620234,0.41394162,2241.3,2240.8,0.8375]
[1750660620433,0.41395241,2241.2,2240.8,0.8375]
[1750660620659,0.41395241,2241.1,2240.8,0.7929]
[1750660620864,0.41395241,2241.0,2240.8,0.7929]
[1750660621055,0.41395241,2240.9,2240.8,0.7929]
[1750660622766,0.775,2241.5,2240.8,0.7929]
[1750660623074,0.4141851,2241.4,2240.8,0.7929]
[1750660623266,0.41418827,2241.3,2240.8,0.7929]
[1750660623561,7.656,2241.5,2240.8,0.7929]
[1750660623768,0.41418458,2241.4,2240.8,0.7929]
[1750660624074,0.41418458,2241.3,2240.8,0.7929]
[1750660624255,0.41418458,2241.2,2240.8,0.7929]
[1750660624465,0.41418458,2241.1,2240.8,0.7929]
[1750660624786,0.41418458,2241.0,2240.8,0.7929]
[1750660624926,10.0,2241.5,2240.8,0.7929]
[1750660625132,0.41410518,2241.4,2240.8,0.7929]
[1750660625332,0.41410518,2241.3,2240.8,0.7929]
[1750660625629,0.41412305,2241.2,2240.8,0.7929]
[1750660625827,0.41412305,2241.1,2240.8,0.7929]
[1750660626031,0.41413014,2241.0,2240.8,0.7929]
[1750660626281,10.0,2241.5,2240.8,0.7929]
[1750660626282,17.89662624,2241.5,2240.8,0.7929]
[1750660626434,0.41417156,2241.4,2240.8,0.7929]
[1750660626768,0.41417156,2241.3,2240.8,0.7929]
[1750660626929,0.41417156,2241.2,2240.8,0.7929]
[1750660627127,0.41417156,2241.1,2240.8,0.7929]
[1750660627374,0.41407973,2241.0,2240.8,0.7929]
[1750660627532,17.89662624,2241.5,2240.9,0.0569]
[1750660627737,0.41407452,2241.4,2240.9,0.0569]
[1750660628056,0.41407452,2241.3,2240.9,0.0569]
[1750660628389,0.41407452,2241.2,2240.9,0.0569]
[1750660628531,0.41407452,2241.1,2240.9,0.0569]
[1750660628732,17.89662624,2241.5,2240.9,0.0569]
[1750660628929,17.89662624,2241.5,2240.8,0.7929]
[1750660628930,7.95402624,2241.3,2240.8,0.7929]
[1750660629134,0.47131778,2241.2,2240.8,0.7929]
[1750660629366,0.41391778,2241.1,2240.8,0.7929]
[1750660629553,0.41391778,2241.0,2240.8,0.7929]
[1750660629756,0.4139391,2240.9,2240.8,0.7929]
[1750660630461,0.41394325,2240.9,2240.5,0.8317]
[1750660630680,0.0574,2241.2,2240.6,0.0569]
[1750660631074,0.41400753,2241.1,2240.5,1.47207]
[1750660631367,8.70912624,2241.3,2240.6,0.0569]
[1750660631368,0.41400753,2241.0,2240.6,0.0569]
[1750660631670,0.41407239,2240.9,2240.6,0.0569]
[1750660631874,0.8699,2241.3,2240.6,0.0569]
[1750660632038,0.41408404,2241.2,2240.6,0.0569]
[1750660632338,0.41408404,2241.1,2240.6,0.0569]
[1750660632537,0.41408404,2241.0,2240.6,0.0569]
[1750660632873,0.41408404,2240.9,2240.6,0.0569]
[1750660633069,0.41419274,2240.8,2240.6,0.0569]
[1750660633373,8.76652624,2241.3,2240.6,0.0569]
[1750660633551,1.29089607,2241.2,2240.6,0.0569]